[Event "Titled Tuesday Blitz November 15 Early 2022"]
[White "Ozen, Bahadir"]
[Black "Andreikin, Dmitry"]
[WhiteFideId "6337058"]
[BlackFideId "4158814"]
[WhiteElo "2503"]
[BlackElo "2736"]
[Result "1-0"]
[Round "04"]
[TimeControl "180+1"]
[Date "2022.11.15"]
[WhiteClock "0:00:04"]
[BlackClock "0:00:12"]

1. g3 {[%clk 0:03:00]}  d5 {[%clk 0:02:56]} 2. Nf3 {[%clk 0:03:00]}  Nf6 {[%clk 0:02:55]} 3. Bg2 {[%clk 0:03:01]}  c5 {[%clk 0:02:51]} 4. O-O {[%clk 0:03:00]}  e6 {[%clk 0:02:51]} 5. c4 {[%clk 0:03:00]}  d4 {[%clk 0:02:49]} 6. d3 {[%clk 0:03:00]}  Nc6 {[%clk 0:02:49]} 7. e3 {[%clk 0:03:00]}  Bd6 {[%clk 0:02:48]} 8. exd4 {[%clk 0:03:00]}  cxd4 {[%clk 0:02:48]} 9. Bg5 {[%clk 0:02:59]}  h6 {[%clk 0:02:47]} 10. Bxf6 {[%clk 0:02:59]}  Qxf6 {[%clk 0:02:47]} 11. Nbd2 {[%clk 0:02:58]}  Qe7 {[%clk 0:02:48]} 12. a3 {[%clk 0:02:52]}  a5 {[%clk 0:02:45]} 13. Ne4 {[%clk 0:02:49]}  Bc7 {[%clk 0:02:44]} 14. b4 {[%clk 0:02:49]}  axb4 {[%clk 0:02:43]} 15. axb4 {[%clk 0:02:50]}  Rxa1 {[%clk 0:02:42]} 16. Qxa1 {[%clk 0:02:51]}  Nxb4 {[%clk 0:02:34]} 17. Qxd4 {[%clk 0:02:16]}  O-O {[%clk 0:02:33]} 18. Qc3 {[%clk 0:02:07]}  Rd8 {[%clk 0:02:18]} 19. d4 {[%clk 0:02:06]}  b6 {[%clk 0:02:18]} 20. Rb1 {[%clk 0:02:02]}  Bb7 {[%clk 0:02:17]} 21. Ned2 {[%clk 0:01:43]}  Nc6 {[%clk 0:02:15]} 22. c5 {[%clk 0:01:43]}  b5 {[%clk 0:01:34]} 23. Rxb5 {[%clk 0:01:42]}  Ba6 {[%clk 0:01:34]} 24. Rb1 {[%clk 0:01:40]}  e5 {[%clk 0:01:35]} 25. dxe5 {[%clk 0:01:15]}  Nxe5 {[%clk 0:01:34]} 26. Re1 {[%clk 0:01:10]}  Nxf3+ {[%clk 0:01:01]} 27. Nxf3 {[%clk 0:01:11]}  Qd7 {[%clk 0:00:51]} 28. c6 {[%clk 0:01:02]}  Qd5 {[%clk 0:00:49]} 29. Nh4 {[%clk 0:00:52]}  Ba5 {[%clk 0:00:38]} 30. Qa1 {[%clk 0:00:42]}  Qc5 {[%clk 0:00:36]} 31. Rc1 {[%clk 0:00:36]}  Qb6 {[%clk 0:00:17]} 32. Nf5 {[%clk 0:00:36]}  f6 {[%clk 0:00:13]} 33. c7 {[%clk 0:00:36]}  Re8 {[%clk 0:00:09]} 34. c8=Q {[%clk 0:00:31]}  Bxc8 {[%clk 0:00:06]} 35. Rxc8 {[%clk 0:00:32]}  Rxc8 {[%clk 0:00:06]} 36. Ne7+ {[%clk 0:00:32]}  Kh8 {[%clk 0:00:06]} 37. Nxc8 {[%clk 0:00:33]}  Qc5 {[%clk 0:00:06]} 38. Nd6 {[%clk 0:00:23]}  Bb6 {[%clk 0:00:03]} 39. Ne4 {[%clk 0:00:15]}  Qd4 {[%clk 0:00:02]} 40. Qa8+ {[%clk 0:00:08]}  Kh7 {[%clk 0:00:01]} 41. Qc8 {[%clk 0:00:09]}  Qd8 {[%clk 0:00:01]} 42. Qxd8 {[%clk 0:00:09]}  Bxd8 {[%clk 0:00:01]} 43. Nd6 {[%clk 0:00:10]}  g6 {[%clk 0:00:01]} 44. h4 {[%clk 0:00:10]}  Kg7 {[%clk 0:00:02]} 45. Bd5 {[%clk 0:00:08]}  h5 {[%clk 0:00:02]} 46. Kg2 {[%clk 0:00:08]}  f5 {[%clk 0:00:02]} 47. Nc4 {[%clk 0:00:07]}  f4 {[%clk 0:00:02]} 48. Kf3 {[%clk 0:00:07]}  fxg3 {[%clk 0:00:03]} 49. fxg3 {[%clk 0:00:08]}  g5 {[%clk 0:00:03]} 50. hxg5 {[%clk 0:00:07]}  Bxg5 {[%clk 0:00:04]} 51. Nd6 {[%clk 0:00:06]}  Be7 {[%clk 0:00:04]} 52. Nf5+ {[%clk 0:00:06]}  Kf6 {[%clk 0:00:04]} 53. Ne3 {[%clk 0:00:06]}  Bd6 {[%clk 0:00:04]} 54. Bc4 {[%clk 0:00:06]}  Bb8 {[%clk 0:00:04]} 55. Be2 {[%clk 0:00:05]}  Kg5 {[%clk 0:00:04]} 56. Ng2 {[%clk 0:00:05]}  Bxg3 {[%clk 0:00:04]} 57. Kxg3 {[%clk 0:00:05]}  Kf6 {[%clk 0:00:05]} 58. Bxh5 {[%clk 0:00:05]}  Ke5 {[%clk 0:00:05]} 59. Bf3 {[%clk 0:00:05]}  Kd4 {[%clk 0:00:05]} 60. Kf4 {[%clk 0:00:06]}  Kc5 {[%clk 0:00:06]} 61. Ne3 {[%clk 0:00:07]}  Kd4 {[%clk 0:00:06]} 62. Be4 {[%clk 0:00:07]}  Kc3 {[%clk 0:00:06]} 63. Ke5 {[%clk 0:00:08]}  Kd2 {[%clk 0:00:07]} 64. Kd4 {[%clk 0:00:09]}  Kc1 {[%clk 0:00:06]} 65. Nc4 {[%clk 0:00:07]}  Kd1 {[%clk 0:00:07]} 66. Bd3 {[%clk 0:00:07]}  Kc1 {[%clk 0:00:08]} 67. Kc3 {[%clk 0:00:07]}  Kd1 {[%clk 0:00:08]} 68. Nd2 {[%clk 0:00:06]}  Kc1 {[%clk 0:00:09]} 69. Bc4 {[%clk 0:00:05]}  Kd1 {[%clk 0:00:09]} 70. Bd5 {[%clk 0:00:03]}  Kc1 {[%clk 0:00:10]} 71. Nb3+ {[%clk 0:00:03]}  Kb1 {[%clk 0:00:09]} 72. Be4+ {[%clk 0:00:03]}  Ka2 {[%clk 0:00:09]} 73. Bc2 {[%clk 0:00:03]}  Ka3 {[%clk 0:00:09]} 74. Bb1 {[%clk 0:00:04]}  Ka4 {[%clk 0:00:09]} 75. Nd4 {[%clk 0:00:05]}  Ka3 {[%clk 0:00:10]} 76. Nb5+ {[%clk 0:00:04]}  Ka4 {[%clk 0:00:10]} 77. Kc4 {[%clk 0:00:04]}  Ka5 {[%clk 0:00:11]} 78. Kc5 {[%clk 0:00:05]}  Ka6 {[%clk 0:00:11]} 79. Nd6 {[%clk 0:00:04]}  Ka7 {[%clk 0:00:11]} 80. Bd3 {[%clk 0:00:03]}  Kb8 {[%clk 0:00:10]} 81. Kc6 {[%clk 0:00:04]}  Ka7 {[%clk 0:00:11]} 82. Kc7 {[%clk 0:00:02]}  Ka8 {[%clk 0:00:11]} 83. Bc4 {[%clk 0:00:02]}  Ka7 {[%clk 0:00:12]} 84. Nc8+ {[%clk 0:00:03]}  Ka8 {[%clk 0:00:12]} 85. Bd5# {[%clk 0:00:04]} 1-0


[Site "https://www.chess.com"]

[Event "Titled Tuesday Blitz November 15 Early 2022"]
[White "Papayan, Oleg"]
[Black "Kopacz, Grzegorz"]
[WhiteFideId "4193911"]
[BlackFideId "1109880"]
[WhiteElo "2153"]
[BlackElo "2037"]
[Result "0-1"]
[Round "04"]
[TimeControl "180+1"]
[Date "2022.11.16"]
[WhiteClock "0:00:37"]
[BlackClock "0:00:55"]

1. e4 {[%clk 0:02:57]}  c5 {[%clk 0:02:59]} 2. Nf3 {[%clk 0:02:56]}  g6 {[%clk 0:02:58]} 3. d4 {[%clk 0:02:56]}  cxd4 {[%clk 0:02:58]} 4. Nxd4 {[%clk 0:02:57]}  Nc6 {[%clk 0:02:58]} 5. c4 {[%clk 0:02:57]}  Nf6 {[%clk 0:02:55]} 6. Nc3 {[%clk 0:02:56]}  Nxd4 {[%clk 0:02:55]} 7. Qxd4 {[%clk 0:02:56]}  Bg7 {[%clk 0:02:56]} 8. Be3 {[%clk 0:02:56]}  O-O {[%clk 0:02:56]} 9. Qd2 {[%clk 0:02:51]}  d6 {[%clk 0:02:56]} 10. f3 {[%clk 0:02:52]}  Be6 {[%clk 0:02:56]} 11. Be2 {[%clk 0:02:47]}  Qa5 {[%clk 0:02:57]} 12. O-O {[%clk 0:02:43]}  Rfc8 {[%clk 0:02:56]} 13. b3 {[%clk 0:02:35]}  a6 {[%clk 0:02:56]} 14. Rac1 {[%clk 0:02:28]}  b5 {[%clk 0:02:56]} 15. Nd5 {[%clk 0:02:14]}  Qxd2 {[%clk 0:02:50]} 16. Bxd2 {[%clk 0:02:12]}  Nxd5 {[%clk 0:02:50]} 17. cxd5 {[%clk 0:02:04]}  Bd4+ {[%clk 0:02:50]} 18. Kh1 {[%clk 0:02:03]}  Bd7 {[%clk 0:02:51]} 19. Rxc8+ {[%clk 0:01:55]}  Rxc8 {[%clk 0:02:50]} 20. Rc1 {[%clk 0:01:56]}  Rxc1+ {[%clk 0:02:50]} 21. Bxc1 {[%clk 0:01:57]}  Bc5 {[%clk 0:02:37]} 22. Bd2 {[%clk 0:01:52]}  e6 {[%clk 0:02:25]} 23. dxe6 {[%clk 0:01:45]}  Bxe6 {[%clk 0:02:26]} 24. g3 {[%clk 0:01:29]}  f5 {[%clk 0:02:23]} 25. Bd3 {[%clk 0:01:27]}  fxe4 {[%clk 0:02:19]} 26. Bxe4 {[%clk 0:01:28]}  d5 {[%clk 0:02:17]} 27. Bd3 {[%clk 0:01:28]}  Bf5 {[%clk 0:02:11]} 28. Bxf5 {[%clk 0:01:24]}  gxf5 {[%clk 0:02:12]} 29. Kg2 {[%clk 0:01:18]}  Kf7 {[%clk 0:02:11]} 30. g4 {[%clk 0:01:13]}  fxg4 {[%clk 0:02:07]} 31. fxg4 {[%clk 0:01:13]}  Kf6 {[%clk 0:02:05]} 32. Bf4 {[%clk 0:01:08]}  Ke6 {[%clk 0:01:50]} 33. Kf3 {[%clk 0:01:08]}  Bd6 {[%clk 0:01:29]} 34. Bxd6 {[%clk 0:00:58]}  Kxd6 {[%clk 0:01:30]} 35. h4 {[%clk 0:00:52]}  Ke5 {[%clk 0:01:29]} 36. Ke3 {[%clk 0:00:52]}  d4+ {[%clk 0:01:28]} 37. Kd3 {[%clk 0:00:52]}  Kf4 {[%clk 0:01:28]} 38. g5 {[%clk 0:00:47]}  Kg4 {[%clk 0:01:26]} 39. Kxd4 {[%clk 0:00:46]}  Kxh4 {[%clk 0:01:26]} 40. a4 {[%clk 0:00:36]}  bxa4 {[%clk 0:01:26]} 41. bxa4 {[%clk 0:00:37]}  Kxg5 {[%clk 0:01:26]} 42. Kc5 {[%clk 0:00:35]}  h5 {[%clk 0:01:26]} 43. Kb6 {[%clk 0:00:36]}  h4 {[%clk 0:01:27]} 44. Kxa6 {[%clk 0:00:36]}  h3 {[%clk 0:01:27]} 45. a5 {[%clk 0:00:36]}  h2 {[%clk 0:01:28]} 46. Ka7 {[%clk 0:00:35]}  h1=Q {[%clk 0:01:28]} 47. a6 {[%clk 0:00:36]}  Qh8 {[%clk 0:00:56]} 48. Kb7 {[%clk 0:00:36]}  Qg7+ {[%clk 0:00:56]} 49. Kb8 {[%clk 0:00:36]}  Qf8+ {[%clk 0:00:56]} 50. Kb7 {[%clk 0:00:36]}  Qe7+ {[%clk 0:00:57]} 51. Kc8 {[%clk 0:00:37]}  Qa7 {[%clk 0:00:55]} 0-1


[Site "https://www.chess.com"]

[Event "Titled Tuesday Blitz November 15 Early 2022"]
[White "Parligras, Mircea-Emilian"]
[Black "Alekseenko, Kirill"]
[WhiteFideId "1204297"]
[BlackFideId "4135539"]
[WhiteElo "2507"]
[BlackElo "2682"]
[Result "0-1"]
[Round "04"]
[TimeControl "180+1"]
[Date "2022.11.15"]
[WhiteClock "0:00:06"]
[BlackClock "0:00:34"]

1. d4 {[%clk 0:03:00]}  d5 {[%clk 0:03:00]} 2. c4 {[%clk 0:03:00]}  dxc4 {[%clk 0:03:01]} 3. e3 {[%clk 0:03:00]}  e5 {[%clk 0:03:01]} 4. Bxc4 {[%clk 0:02:59]}  Nc6 {[%clk 0:03:01]} 5. Nf3 {[%clk 0:02:54]}  e4 {[%clk 0:03:01]} 6. Nfd2 {[%clk 0:02:54]}  Qg5 {[%clk 0:03:02]} 7. Nxe4 {[%clk 0:02:53]}  Qxg2 {[%clk 0:03:02]} 8. Ng3 {[%clk 0:02:54]}  Nf6 {[%clk 0:03:03]} 9. Bf1 {[%clk 0:02:50]}  Qd5 {[%clk 0:03:02]} 10. Nc3 {[%clk 0:02:51]}  Bb4 {[%clk 0:02:54]} 11. Bd2 {[%clk 0:02:46]}  Qd8 {[%clk 0:02:52]} 12. Bg2 {[%clk 0:02:44]}  O-O {[%clk 0:02:51]} 13. a3 {[%clk 0:02:35]}  Be7 {[%clk 0:02:49]} 14. O-O {[%clk 0:02:35]}  Be6 {[%clk 0:02:40]} 15. Nce4 {[%clk 0:02:22]}  Nxe4 {[%clk 0:02:31]} 16. Nxe4 {[%clk 0:02:16]}  Qd7 {[%clk 0:02:31]} 17. Rc1 {[%clk 0:02:08]}  Bh3 {[%clk 0:02:24]} 18. Qf3 {[%clk 0:01:55]}  Bxg2 {[%clk 0:02:23]} 19. Qxg2 {[%clk 0:01:54]}  Rae8 {[%clk 0:02:11]} 20. b4 {[%clk 0:01:39]}  f5 {[%clk 0:02:03]} 21. Nc5 {[%clk 0:01:39]}  Bxc5 {[%clk 0:02:02]} 22. Rxc5 {[%clk 0:01:37]}  Re6 {[%clk 0:01:52]} 23. Kh1 {[%clk 0:01:27]}  Rg6 {[%clk 0:01:42]} 24. Qd5+ {[%clk 0:01:26]}  Qxd5+ {[%clk 0:01:42]} 25. Rxd5 {[%clk 0:01:27]}  Rd6 {[%clk 0:01:40]} 26. Rc5 {[%clk 0:01:22]}  Rf7 {[%clk 0:01:38]} 27. Rfc1 {[%clk 0:01:20]}  Rdd7 {[%clk 0:01:38]} 28. b5 {[%clk 0:01:10]}  Nd8 {[%clk 0:01:38]} 29. a4 {[%clk 0:01:09]}  Ne6 {[%clk 0:01:31]} 30. Re5 {[%clk 0:01:09]}  Ng5 {[%clk 0:01:31]} 31. Bb4 {[%clk 0:01:00]}  Rf6 {[%clk 0:01:22]} 32. Re8+ {[%clk 0:00:57]}  Kf7 {[%clk 0:01:22]} 33. Rc8 {[%clk 0:00:44]}  Ne6 {[%clk 0:01:22]} 34. a5 {[%clk 0:00:39]}  a6 {[%clk 0:01:17]} 35. bxa6 {[%clk 0:00:36]}  bxa6 {[%clk 0:01:18]} 36. Rc6 {[%clk 0:00:35]}  f4 {[%clk 0:01:17]} 37. Rxa6 {[%clk 0:00:31]}  Rd5 {[%clk 0:01:16]} 38. Rc6 {[%clk 0:00:26]}  Rb5 {[%clk 0:01:13]} 39. Rc4 {[%clk 0:00:22]}  fxe3 {[%clk 0:01:04]} 40. fxe3 {[%clk 0:00:22]}  Rf1+ {[%clk 0:01:05]} 41. Kg2 {[%clk 0:00:22]}  Rb1 {[%clk 0:01:06]} 42. Bc3 {[%clk 0:00:18]}  Rc1 {[%clk 0:01:01]} 43. a6 {[%clk 0:00:15]}  Rc2+ {[%clk 0:01:01]} 44. Kf3 {[%clk 0:00:12]}  Ng5+ {[%clk 0:00:54]} 45. Kg4 {[%clk 0:00:11]}  Rg2+ {[%clk 0:00:51]} 46. Kf4 {[%clk 0:00:10]}  Rf2+ {[%clk 0:00:50]} 47. Kg4 {[%clk 0:00:10]}  h5+ {[%clk 0:00:47]} 48. Kg3 {[%clk 0:00:08]}  Ne4+ {[%clk 0:00:47]} 49. Kh3 {[%clk 0:00:08]}  Rbf5 {[%clk 0:00:41]} 50. R4xc7+ {[%clk 0:00:08]}  Kg6 {[%clk 0:00:41]} 51. Rc6+ {[%clk 0:00:06]}  Kh7 {[%clk 0:00:34]} 0-1


[Site "https://www.chess.com"]

[Event "Titled Tuesday Blitz November 15 Early 2022"]
[White "Pein, Jonathan"]
[Black "Jarmula, Lukasz"]
[WhiteFideId "417092"]
[BlackFideId "1160664"]
[WhiteElo "2227"]
[BlackElo "2357"]
[Result "0-1"]
[Round "04"]
[TimeControl "180+1"]
[Date "2022.11.16"]
[WhiteClock "0:00:14"]
[BlackClock "0:01:57"]

1. e4 {[%clk 0:03:00]}  c5 {[%clk 0:02:55]} 2. Be2 {[%clk 0:02:59]}  Nc6 {[%clk 0:02:54]} 3. d3 {[%clk 0:02:59]}  e6 {[%clk 0:02:53]} 4. f4 {[%clk 0:02:59]}  d5 {[%clk 0:02:53]} 5. Nf3 {[%clk 0:02:57]}  dxe4 {[%clk 0:02:52]} 6. dxe4 {[%clk 0:02:57]}  Qxd1+ {[%clk 0:02:53]} 7. Bxd1 {[%clk 0:02:58]}  Bd7 {[%clk 0:02:53]} 8. O-O {[%clk 0:02:58]}  Nf6 {[%clk 0:02:51]} 9. Nc3 {[%clk 0:02:52]}  c4 {[%clk 0:02:51]} 10. h3 {[%clk 0:02:44]}  Bb4 {[%clk 0:02:48]} 11. Bd2 {[%clk 0:02:35]}  Bxc3 {[%clk 0:02:45]} 12. Bxc3 {[%clk 0:02:35]}  Nxe4 {[%clk 0:02:45]} 13. Bxg7 {[%clk 0:02:35]}  Rg8 {[%clk 0:02:46]} 14. Be5 {[%clk 0:02:28]}  f6 {[%clk 0:02:44]} 15. Re1 {[%clk 0:02:11]}  fxe5 {[%clk 0:02:43]} 16. Rxe4 {[%clk 0:02:11]}  exf4 {[%clk 0:02:44]} 17. Rxf4 {[%clk 0:02:07]}  e5 {[%clk 0:02:41]} 18. Nxe5 {[%clk 0:01:45]}  Nxe5 {[%clk 0:02:40]} 19. Re4 {[%clk 0:01:45]}  O-O-O {[%clk 0:02:14]} 20. Rxe5 {[%clk 0:01:40]}  Bxh3 {[%clk 0:02:15]} 21. Bf3 {[%clk 0:00:46]}  Bxg2 {[%clk 0:02:14]} 22. Bxg2 {[%clk 0:00:37]}  Rd2 {[%clk 0:02:13]} 23. Rc5+ {[%clk 0:00:37]}  Kb8 {[%clk 0:02:11]} 24. Rxc4 {[%clk 0:00:36]}  Rgxg2+ {[%clk 0:02:11]} 25. Kf1 {[%clk 0:00:25]}  Rdf2+ {[%clk 0:02:10]} 26. Ke1 {[%clk 0:00:25]}  Rf8 {[%clk 0:01:58]} 27. a4 {[%clk 0:00:14]}  Rg1+ {[%clk 0:01:57]} 0-1


[Site "https://www.chess.com"]

[Event "Titled Tuesday Blitz November 15 Early 2022"]
[White "Pichot, Alan"]
[Black "Safin, Robert"]
[WhiteFideId "110973"]
[BlackFideId "34189120"]
[WhiteElo "2560"]
[BlackElo "2253"]
[Result "1-0"]
[Round "04"]
[TimeControl "180+1"]
[Date "2022.11.16"]
[WhiteClock "0:00:53"]
[BlackClock "0:00:01"]

1. d4 {[%clk 0:02:57]}  Nf6 {[%clk 0:02:59]} 2. Nf3 {[%clk 0:02:56]}  d5 {[%clk 0:02:58]} 3. c4 {[%clk 0:02:56]}  dxc4 {[%clk 0:02:57]} 4. e3 {[%clk 0:02:54]}  a6 {[%clk 0:02:56]} 5. Bxc4 {[%clk 0:02:55]}  e6 {[%clk 0:02:53]} 6. O-O {[%clk 0:02:54]}  c5 {[%clk 0:02:52]} 7. b3 {[%clk 0:02:53]}  b5 {[%clk 0:02:50]} 8. Be2 {[%clk 0:02:52]}  Bb7 {[%clk 0:02:50]} 9. Bb2 {[%clk 0:02:52]}  Nbd7 {[%clk 0:02:46]} 10. Nbd2 {[%clk 0:02:51]}  Be7 {[%clk 0:02:43]} 11. a4 {[%clk 0:02:51]}  b4 {[%clk 0:02:39]} 12. Rc1 {[%clk 0:02:50]}  O-O {[%clk 0:02:35]} 13. Nc4 {[%clk 0:02:50]}  Rc8 {[%clk 0:02:27]} 14. Rc2 {[%clk 0:02:46]}  h6 {[%clk 0:02:11]} 15. Qa1 {[%clk 0:02:46]}  Qc7 {[%clk 0:01:43]} 16. Nce5 {[%clk 0:02:42]}  Nxe5 {[%clk 0:01:37]} 17. dxe5 {[%clk 0:02:41]}  Nd5 {[%clk 0:01:28]} 18. Nd2 {[%clk 0:02:41]}  Rfd8 {[%clk 0:01:14]} 19. Nc4 {[%clk 0:02:41]}  Nb6 {[%clk 0:00:44]} 20. Nd6 {[%clk 0:02:37]}  Rb8 {[%clk 0:00:33]} 21. Rfc1 {[%clk 0:02:35]}  Nd7 {[%clk 0:00:29]} 22. Nxb7 {[%clk 0:02:31]}  Qxb7 {[%clk 0:00:29]} 23. Bf3 {[%clk 0:02:29]}  Qb6 {[%clk 0:00:27]} 24. Rd1 {[%clk 0:02:29]}  Nf8 {[%clk 0:00:25]} 25. g3 {[%clk 0:02:25]}  a5 {[%clk 0:00:24]} 26. Qc1 {[%clk 0:02:23]}  Rxd1+ {[%clk 0:00:19]} 27. Qxd1 {[%clk 0:02:24]}  Rd8 {[%clk 0:00:20]} 28. Qe2 {[%clk 0:02:25]}  Nd7 {[%clk 0:00:12]} 29. Be4 {[%clk 0:02:22]}  Qc7 {[%clk 0:00:10]} 30. f4 {[%clk 0:02:17]}  Nb8 {[%clk 0:00:08]} 31. Qb5 {[%clk 0:02:14]}  Qd7 {[%clk 0:00:08]} 32. Qxd7 {[%clk 0:02:07]}  Rxd7 {[%clk 0:00:09]} 33. Kf1 {[%clk 0:02:06]}  Kf8 {[%clk 0:00:09]} 34. Ke2 {[%clk 0:02:07]}  Ke8 {[%clk 0:00:09]} 35. Rc1 {[%clk 0:02:06]}  Kd8 {[%clk 0:00:07]} 36. g4 {[%clk 0:02:02]}  Kc7 {[%clk 0:00:07]} 37. Bd3 {[%clk 0:01:59]}  Kb6 {[%clk 0:00:06]} 38. Bb5 {[%clk 0:01:59]}  Rd8 {[%clk 0:00:05]} 39. Rh1 {[%clk 0:01:52]}  Na6 {[%clk 0:00:04]} 40. Bc1 {[%clk 0:01:51]}  Nc7 {[%clk 0:00:04]} 41. Bc4 {[%clk 0:01:52]}  Nd5 {[%clk 0:00:05]} 42. Bd2 {[%clk 0:01:52]}  Nc3+ {[%clk 0:00:03]} 43. Bxc3 {[%clk 0:01:48]}  bxc3 {[%clk 0:00:03]} 44. Bd3 {[%clk 0:01:49]}  c4 {[%clk 0:00:03]} 45. bxc4 {[%clk 0:01:45]}  Bb4 {[%clk 0:00:03]} 46. h4 {[%clk 0:01:41]}  Kc5 {[%clk 0:00:03]} 47. h5 {[%clk 0:01:41]}  Rd7 {[%clk 0:00:02]} 48. g5 {[%clk 0:01:40]}  Rd8 {[%clk 0:00:02]} 49. g6 {[%clk 0:01:40]}  fxg6 {[%clk 0:00:02]} 50. hxg6 {[%clk 0:01:39]}  Rd7 {[%clk 0:00:03]} 51. Rd1 {[%clk 0:01:20]}  Rd8 {[%clk 0:00:03]} 52. Be4 {[%clk 0:01:13]}  Rd2+ {[%clk 0:00:03]} 53. Rxd2 {[%clk 0:01:14]}  cxd2 {[%clk 0:00:04]} 54. Bb7 {[%clk 0:01:14]}  Kxc4 {[%clk 0:00:02]} 55. Bc8 {[%clk 0:01:10]}  Kd5 {[%clk 0:00:03]} 56. Bd7 {[%clk 0:01:11]}  Bc3 {[%clk 0:00:02]} 57. Be8 {[%clk 0:01:11]}  Ke4 {[%clk 0:00:01]} 58. Bc6+ {[%clk 0:01:09]}  Kf5 {[%clk 0:00:01]} 59. Bf3 {[%clk 0:00:52]}  Kxg6 {[%clk 0:00:01]} 60. Kd3 {[%clk 0:00:53]} 1-0


[Site "https://www.chess.com"]

[Event "Titled Tuesday Blitz November 15 Early 2022"]
[White "Pinero Rodriguez, Carlos Jose"]
[Black "Petrovic, Aleksa"]
[WhiteFideId "3901726"]
[BlackFideId "967629"]
[WhiteElo "2146"]
[BlackElo "2224"]
[Result "0-1"]
[Round "04"]
[TimeControl "180+1"]
[Date "2022.11.16"]
[WhiteClock "0:00:15"]
[BlackClock "0:00:05"]

1. e4 {[%clk 0:02:59]}  e5 {[%clk 0:02:57]} 2. Qh5 {[%clk 0:02:58]}  Nf6 {[%clk 0:02:55]} 3. Qxe5+ {[%clk 0:02:58]}  Be7 {[%clk 0:02:55]} 4. Nc3 {[%clk 0:02:52]}  O-O {[%clk 0:02:55]} 5. Nf3 {[%clk 0:02:51]}  Re8 {[%clk 0:02:54]} 6. d3 {[%clk 0:02:47]}  d5 {[%clk 0:02:43]} 7. Qg3 {[%clk 0:02:42]}  dxe4 {[%clk 0:02:40]} 8. dxe4 {[%clk 0:02:43]}  Nxe4 {[%clk 0:02:32]} 9. Nxe4 {[%clk 0:02:39]}  Bb4+ {[%clk 0:02:32]} 10. c3 {[%clk 0:02:34]}  Rxe4+ {[%clk 0:02:32]} 11. Be3 {[%clk 0:02:32]}  Bd6 {[%clk 0:02:22]} 12. Qg5 {[%clk 0:02:27]}  Qe8 {[%clk 0:02:21]} 13. Bd3 {[%clk 0:02:21]}  Bf4 {[%clk 0:02:08]} 14. Qd5 {[%clk 0:02:14]}  Re7 {[%clk 0:01:58]} 15. O-O {[%clk 0:02:04]}  Bxe3 {[%clk 0:01:54]} 16. fxe3 {[%clk 0:02:05]}  Nd7 {[%clk 0:01:45]} 17. e4 {[%clk 0:01:59]}  Nf6 {[%clk 0:01:34]} 18. Qb3 {[%clk 0:01:58]}  c6 {[%clk 0:01:25]} 19. e5 {[%clk 0:01:54]}  Ng4 {[%clk 0:01:06]} 20. Rae1 {[%clk 0:01:54]}  Be6 {[%clk 0:01:04]} 21. Qa4 {[%clk 0:01:49]}  Nh6 {[%clk 0:00:48]} 22. Bb1 {[%clk 0:01:37]}  Bd5 {[%clk 0:00:38]} 23. Be4 {[%clk 0:01:22]}  Bxe4 {[%clk 0:00:36]} 24. Qxe4 {[%clk 0:01:23]}  f5 {[%clk 0:00:26]} 25. Qc4+ {[%clk 0:01:19]}  Qf7 {[%clk 0:00:24]} 26. Qxf7+ {[%clk 0:01:19]}  Nxf7 {[%clk 0:00:24]} 27. Re2 {[%clk 0:01:16]}  Rae8 {[%clk 0:00:23]} 28. Rfe1 {[%clk 0:01:15]}  h6 {[%clk 0:00:20]} 29. e6 {[%clk 0:01:12]}  Nd8 {[%clk 0:00:19]} 30. Nd4 {[%clk 0:01:12]}  g6 {[%clk 0:00:19]} 31. Kf2 {[%clk 0:01:11]}  c5 {[%clk 0:00:19]} 32. Nb5 {[%clk 0:01:11]}  Rxe6 {[%clk 0:00:17]} 33. Rxe6 {[%clk 0:01:10]}  Rxe6 {[%clk 0:00:17]} 34. Rxe6 {[%clk 0:01:10]}  Nxe6 {[%clk 0:00:18]} 35. Nxa7 {[%clk 0:01:11]}  Kf7 {[%clk 0:00:18]} 36. Nb5 {[%clk 0:01:08]}  Kf6 {[%clk 0:00:18]} 37. Nd6 {[%clk 0:01:08]}  b6 {[%clk 0:00:16]} 38. Nc8 {[%clk 0:01:08]}  b5 {[%clk 0:00:17]} 39. Nd6 {[%clk 0:01:08]}  b4 {[%clk 0:00:17]} 40. cxb4 {[%clk 0:01:08]}  cxb4 {[%clk 0:00:18]} 41. a4 {[%clk 0:01:07]}  Nc5 {[%clk 0:00:16]} 42. a5 {[%clk 0:01:02]}  Ke6 {[%clk 0:00:15]} 43. Nc4 {[%clk 0:00:57]}  Kd5 {[%clk 0:00:15]} 44. Nb6+ {[%clk 0:00:48]}  Kc6 {[%clk 0:00:16]} 45. Ke3 {[%clk 0:00:43]}  Kb5 {[%clk 0:00:16]} 46. Nc8 {[%clk 0:00:42]}  Na4 {[%clk 0:00:13]} 47. b3 {[%clk 0:00:38]}  Nc5 {[%clk 0:00:13]} 48. Ne7 {[%clk 0:00:37]}  Nxb3 {[%clk 0:00:10]} 49. Nxg6 {[%clk 0:00:37]}  Nxa5 {[%clk 0:00:10]} 50. Kd2 {[%clk 0:00:35]}  Ka4 {[%clk 0:00:09]} 51. Ne7 {[%clk 0:00:32]}  Ka3 {[%clk 0:00:09]} 52. Nxf5 {[%clk 0:00:32]}  b3 {[%clk 0:00:08]} 53. Ne3 {[%clk 0:00:20]}  b2 {[%clk 0:00:08]} 54. Kc2 {[%clk 0:00:16]}  Ka2 {[%clk 0:00:08]} 55. Kd3 {[%clk 0:00:14]}  b1=Q+ {[%clk 0:00:07]} 56. Ke2 {[%clk 0:00:15]}  Qe4 {[%clk 0:00:06]} 57. Kf2 {[%clk 0:00:15]}  Nc4 {[%clk 0:00:05]} 0-1


[Site "https://www.chess.com"]

[Event "Titled Tuesday Blitz November 15 Early 2022"]
[White "Pinheiro, Iung Alicio de O."]
[Black "Alfaro, William"]
[WhiteFideId "2104350"]
[BlackFideId "6100457"]
[WhiteElo "2283"]
[BlackElo "2096"]
[Result "1-0"]
[Round "04"]
[TimeControl "180+1"]
[Date "2022.11.16"]
[WhiteClock "0:00:35"]
[BlackClock "0:01:04"]

1. e4 {[%clk 0:02:48]}  c5 {[%clk 0:02:59]} 2. Nf3 {[%clk 0:02:47]}  Nc6 {[%clk 0:02:59]} 3. c3 {[%clk 0:02:47]}  d5 {[%clk 0:02:56]} 4. exd5 {[%clk 0:02:44]}  Qxd5 {[%clk 0:02:57]} 5. d4 {[%clk 0:02:44]}  cxd4 {[%clk 0:02:57]} 6. cxd4 {[%clk 0:02:42]}  Bg4 {[%clk 0:02:57]} 7. Be2 {[%clk 0:02:37]}  e6 {[%clk 0:02:55]} 8. h3 {[%clk 0:02:35]}  Bh5 {[%clk 0:02:54]} 9. O-O {[%clk 0:02:30]}  Bb4 {[%clk 0:02:53]} 10. Nc3 {[%clk 0:02:30]}  Bxc3 {[%clk 0:02:52]} 11. bxc3 {[%clk 0:02:31]}  Nf6 {[%clk 0:02:49]} 12. Be3 {[%clk 0:02:23]}  O-O {[%clk 0:02:47]} 13. c4 {[%clk 0:02:23]}  Qd7 {[%clk 0:02:46]} 14. Qd2 {[%clk 0:02:18]}  b6 {[%clk 0:02:28]} 15. Rfd1 {[%clk 0:02:16]}  Rfd8 {[%clk 0:02:28]} 16. Rac1 {[%clk 0:02:16]}  Rac8 {[%clk 0:02:22]} 17. g4 {[%clk 0:02:12]}  Bg6 {[%clk 0:02:21]} 18. Qb2 {[%clk 0:02:13]}  Ne4 {[%clk 0:02:19]} 19. d5 {[%clk 0:02:07]}  exd5 {[%clk 0:02:19]} 20. cxd5 {[%clk 0:02:07]}  Na5 {[%clk 0:02:12]} 21. Rxc8 {[%clk 0:01:43]}  Rxc8 {[%clk 0:02:10]} 22. Bb5 {[%clk 0:01:36]}  Qd6 {[%clk 0:02:03]} 23. Rc1 {[%clk 0:01:23]}  Rxc1+ {[%clk 0:01:42]} 24. Qxc1 {[%clk 0:01:24]}  h6 {[%clk 0:01:42]} 25. Bc6 {[%clk 0:01:18]}  Nc5 {[%clk 0:01:39]} 26. Bf4 {[%clk 0:01:06]}  Qd8 {[%clk 0:01:33]} 27. Qe3 {[%clk 0:01:03]}  Qc8 {[%clk 0:01:08]} 28. Ne5 {[%clk 0:00:56]}  Be4 {[%clk 0:01:05]} 29. f3 {[%clk 0:00:54]}  Nxc6 {[%clk 0:01:04]} 30. Nxc6 {[%clk 0:00:35]} 1-0


[Site "https://www.chess.com"]